[Event "Targo Mures Open 2019"]
[Site "Targo Mures"]
[Date "2019.10.18"]
[Round "3.4"]
[White "Anton, Teodor"]
[Black "Ognean, Mihnea-Ionut"]
[Result "1/2-1/2"]
[ECO "E04"]
[WhiteElo "2445"]
[BlackElo "2285"]
[Annotator "NA"]
[PlyCount "89"]
[EventDate "2019.03.02"]
[EventType "swiss"]
[EventCountry "ROU"]
[SourceTitle "playchess.com"]
[Source "ChessBase"]
[SourceQuality "1"]
[TimeControl "5400+30"]

1. d4 {[%emt 0:00:00]} Nf6 {[%emt 0:00:00]} 2. Nf3 {[%emt 0:00:02]} e6 {[%emt 0:00:00]} 3. c4 {[%emt 0:03:10]} d5 {[%emt 0:00:11]} 4. g3 {[%emt 0:00:09]} dxc4 {[%emt 0:00:09]} 5. Bg2 {[%emt 0:00:51]} c5 {[%emt 0:00:06]} 6. O-O {[%emt 0:05:36]} Nc6 {[%emt 0:00:09]} 7. Qa4 {[%emt 0:09:32]} Bd7 {[%emt 0:01:18]} 8. dxc5 {[%emt 0:01:41]} Na5 {[%emt 0:06:55]} 9. Qc2 {[%emt 0:03:06]} Bxc5 {[%emt 0:01:17]} 10. Ne5 {[%emt 0:03:04]} Rc8 {[%emt 0:01:25]} 11. Nxd7 {[%emt 0:03:20]} Nxd7 {[%emt 0:01:36]} 12. Bd2 {[%emt 0:01:56]} O-O {[%emt 0:04:18]} 13. Nc3 {[%emt 0:11:10]} a6 {[%emt 0:07:09]} 14. Ne4 {[%emt 0:03:15]} b5 {[%emt 0:00:47]} 15. Rad1 {[%emt 0:03:25]} Nc6 $11 {[%emt 0:04:53]} 16. Bc3 {[%emt 0:26:02]} Nb4 {[%emt 0:05:57]} 17. Qd2 {[%emt 0:05:07]} Nd5 {[%emt 0:00:09]} 18. Nxc5 {[%emt 0:01:09]} Rxc5 {[%emt 0:06:25]} 19. Ba5 {[%emt 0:01:09]} c3 {[%emt 0:06:19]} 20. Bxd8 {[%emt 0:03:24]} cxd2 {[%emt 0:00:05]} 21. Bg5 {[%emt 0:00:28]} Nc3 {[%emt 0:16:30]} 22. bxc3 {[%emt 0:00:25]} Rxg5 {[%emt 0:00:04]} 23. Rxd2 {[%emt 0:00:05]} Nb8 {[%emt 0:00:21]} 24. Rd6 {[%emt 0:03:58]} Rc5 {[%emt 0:00:48]} 25. Rc1 {[%emt 0:00:04]} g5 {[%emt 0:01:07]} 26. a3 {[%emt 0:04:10]} Kg7 {[%emt 0:00:59]} 27. Bb7 {[%emt 0:00:51]} a5 {[%emt 0:00:23]} 28. Be4 {[%emt 0:00:54]} Rfc8 {[%emt 0:01:14]} 29. Bd3 {[%emt 0:00:42]} b4 {[%emt 0:01:01]} 30. axb4 {[%emt 0:00:17]} axb4 {[%emt 0:00:04]} 31. c4 {[%emt 0:00:15]} Nc6 {[%emt 0:00:43]} 32. Rb1 {[%emt 0:00:44]} Rb8 {[%emt 0:01:00]} 33. f4 {[%emt 0:00:24]} gxf4 {[%emt 0:03:04]} 34. gxf4 {[%emt 0:00:04]} b3 {[%emt 0:00:13]} 35. Kf2 {[%emt 0:02:07]} b2 {[%emt 0:05:44]} 36. Ke3 {[%emt 0:00:55]} Kf6 {[%emt 0:00:09]} 37. Rd7 {[%emt 0:00:55]} Rh5 {[%emt 0:01:06]} 38. Rc7 {[%emt 0:00:19]} Ne7 {[%emt 0:01:06]} 39. Ra7 {[%emt 0:01:31]} Rh3+ {[%emt 0:06:20]} 40. Kd2 {[%emt 0:00:13]} Rxh2 {[%emt 0:00:48]} 41. Ra2 {[%emt 0:00:49]} Ng6 {[%emt 0:00:57]} 42. f5 {[%emt 0:00:21]} Ne5 {[%emt 0:02:31]} 43. fxe6 {[%emt 0:00:32]} fxe6 {[%emt 0:01:46]} 44. Raxb2 {[%emt 0:00:41]} Rxb2+ {[%emt 0:00:15]} 45. Rxb2 {[%emt 0:00:09]} 1/2-1/2

[Event "Targo Mures Open 2019"]
[Site "Targo Mures"]
[Date "2019.10.18"]
[Round "3.5"]
[White "Rusan, Paul-Cristian"]
[Black "Filip, Lucian-Ioan"]
[Result "0-1"]
[ECO "B30"]
[WhiteElo "2105"]
[BlackElo "2418"]
[Annotator "NA"]
[PlyCount "86"]
[EventDate "2019.03.02"]
[EventType "swiss"]
[EventCountry "ROU"]
[SourceTitle "playchess.com"]
[Source "ChessBase"]
[SourceQuality "1"]
[TimeControl "5400+30"]

1. e4 {[%emt 0:00:00]} c5 {[%emt 0:00:00]} 2. Nf3 {[%emt 0:00:22]} Nc6 {[%emt 0:00:00]} 3. Bb5 {[%emt 0:00:26]} Nf6 {[%emt 0:00:00]} 4. Nc3 {[%emt 0:00:53]} Qc7 {[%emt 0:00:00]} 5. O-O {[%emt 0:00:52]} Nd4 {[%emt 0:00:08]} 6. d3 {[%emt 0:04:17]} a6 {[%emt 0:15:04]} 7. Bc4 {[%emt 0:05:44]} e6 {[%emt 0:00:49]} 8. Nxd4 {[%emt 0:01:33]} cxd4 {[%emt 0:00:05]} 9. Ne2 {[%emt 0:00:33]} Nxe4 {[%emt 0:23:47]} 10. Bf4 {[%emt 0:22:19]} Nd6 $11 {[%emt 0:09:56]} 11. Bb3 {[%emt 0:04:54]} Qc5 {[%emt 0:01:13]} 12. c3 {[%emt 0:01:22]} dxc3 {[%emt 0:02:47]} 13. bxc3 {[%emt 0:01:15]} Be7 {[%emt 0:04:08]} 14. d4 {[%emt 0:02:37]} Qh5 {[%emt 0:01:43]} 15. f3 {[%emt 0:06:23]} b5 {[%emt 0:06:09]} 16. a4 {[%emt 0:03:06]} Bb7 {[%emt 0:00:11]} 17. axb5 {[%emt 0:00:27]} axb5 {[%emt 0:01:32]} 18. Rxa8+ {[%emt 0:00:12]} Bxa8 {[%emt 0:00:02]} 19. Qa1 {[%emt 0:18:12]} O-O {[%emt 0:18:43]} 20. Re1 {[%emt 0:12:24]} Nc4 {[%emt 0:02:18]} 21. Qa7 {[%emt 0:06:18]} Qd5 {[%emt 0:06:31]} 22. Ng3 {[%emt 0:01:28]} Bb7 {[%emt 0:01:16]} 23. Re5 {[%emt 0:02:20]} Qc6 {[%emt 0:00:53]} 24. Nf5 {[%emt 0:00:46]} Bf6 {[%emt 0:01:59]} 25. Rc5 {[%emt 0:00:51]} Ra8 {[%emt 0:01:14]} 26. Rxc6 {[%emt 0:01:18]} Rxa7 {[%emt 0:00:03]} 27. Rc7 {[%emt 0:00:11]} exf5 {[%emt 0:00:10]} 28. Rxd7 {[%emt 0:01:18]} g5 {[%emt 0:00:35]} 29. Bb8 {[%emt 0:00:15]} Ra1+ {[%emt 0:00:08]} 30. Kf2 {[%emt 0:00:06]} Rb1 {[%emt 0:02:10]} 31. Rxb7 {[%emt 0:01:47]} Rxb3 {[%emt 0:00:07]} 32. d5 {[%emt 0:00:39]} Rb2+ {[%emt 0:00:19]} 33. Ke1 {[%emt 0:00:49]} Bxc3+ {[%emt 0:00:29]} 34. Kd1 {[%emt 0:00:20]} Ne3+ {[%emt 0:00:56]} 35. Kc1 {[%emt 0:00:13]} Rxg2 {[%emt 0:00:41]} 36. Kb1 {[%emt 0:00:42]} Rb2+ {[%emt 0:00:23]} 37. Kc1 {[%emt 0:00:31]} Rd2 {[%emt 0:00:35]} 38. Kb1 {[%emt 0:00:30]} Rxd5 {[%emt 0:00:32]} 39. Ba7 {[%emt 0:00:24]} f4 {[%emt 0:00:19]} 40. Ka2 {[%emt 0:00:29]} b4 {[%emt 0:00:16]} 41. Kb3 {[%emt 0:00:17]} Ra5 {[%emt 0:00:09]} 42. Bxe3 {[%emt 0:00:19]} fxe3 {[%emt 0:00:03]} 43. Re7 {[%emt 0:00:17]} Re5 {[%emt 0:00:05]} 0-1

[Event "Targo Mures Open 2019"]
[Site "Targo Mures"]
[Date "2019.10.18"]
[Round "3.6"]
[White "Soltanici, Ruslan"]
[Black "Titu, Maiorescu-Dorin"]
[Result "1-0"]
[ECO "B01"]
[WhiteElo "2416"]
[BlackElo "2147"]
[Annotator "NA RC"]
[PlyCount "103"]
[EventDate "2019.03.02"]
[EventType "swiss"]
[EventCountry "ROU"]
[SourceTitle "playchess.com"]
[Source "ChessBase"]
[SourceQuality "1"]
[TimeControl "5400+30"]

1. e4 {[%emt 0:00:00]} d5 {[%emt 0:00:00]} 2. exd5 {[%emt 0:00:00]} Nf6 {[%emt 0:00:00]} 3. d4 {[%emt 0:04:44]} Nxd5 {[%emt 0:00:05]} 4. c4 {[%emt 0:03:47]} Nb6 {[%emt 0:00:40]} 5. Nf3 {[%emt 0:01:25]} g6 {[%emt 0:00:23]} 6. Nc3 {[%emt 0:04:05]} Bg7 {[%emt 0:00:56]} 7. c5 {[%emt 0:01:31]} Nd5 {[%emt 0:01:05]} 8. Bc4 {[%emt 0:00:31]} Nxc3 {[%emt 0:01:07]} 9. bxc3 {[%emt 0:00:29]} O-O {[%emt 0:00:19]} 10. O-O {[%emt 0:00:37]} Nc6 {[%emt 0:04:58]} 11. Re1 {[%emt 0:02:58]} Na5 {[%emt 0:04:03]} 12. Bf1 {[%emt 0:06:56]} b6 {[%emt 0:01:35]} 13. Ba3 {[%emt 0:03:29]} Bf6 {[%emt 0:06:11]} 14. Ne5 {[%emt 0:07:58]} Be6 $16 {[%emt 0:15:51]} 15. Qc2 {[%emt 0:33:08]} c6 {[%emt 0:21:31]} 16. Bb4 {[%emt 0:08:44]} Bxe5 {[%emt 0:00:51]} 17. Rxe5 {[%emt 0:00:06]} b5 {[%emt 0:00:38]} 18. Bxa5 {[%emt 0:04:23]} Qxa5 {[%emt 0:00:39]} 19. g3 {[%emt 0:08:02]} Qc7 {[%emt 0:02:07]} 20. Rae1 {[%emt 0:00:35]} Rad8 {[%emt 0:06:13]} 21. Bg2 {[%emt 0:00:48]} Qd7 {[%emt 0:14:40]} 22. h4 {[%emt 0:00:51]} Rde8 {[%emt 0:01:17]} 23. a4 {[%emt 0:05:19]} Bc4 {[%emt 0:01:06]} 24. axb5 {[%emt 0:00:45]} cxb5 {[%emt 0:00:08]} 25. Ra1 {[%emt 0:00:40]} f6 {[%emt 0:02:09]} 26. Re3 {[%emt 0:00:34]} e6 {[%emt 0:00:11]} 27. Ra6 {[%emt 0:00:24]} Qc7 {[%emt 0:02:06]} 28. Re1 {[%emt 0:00:15]} Re7 {[%emt 0:02:54]} 29. Rea1 {[%emt 0:00:09]} Qb8 {[%emt 0:00:25]} 30. Qb2 {[%emt 0:00:33]} Kg7 {[%emt 0:01:08]} 31. Qb4 {[%emt 0:00:23]} Rff7 {[%emt 0:00:45]} 32. Rd6 {[%emt 0:01:15]} e5 {[%emt 0:01:51]} 33. Bd5 {[%emt 0:00:33]} Bxd5 {[%emt 0:00:19]} 34. Rxd5 {[%emt 0:00:01]} exd4 {[%emt 0:02:31]} 35. cxd4 {[%emt 0:00:09]} Qb7 {[%emt 0:01:02]} 36. Qb3 {[%emt 0:01:00]} Re2 {[%emt 0:01:15]} 37. Rd6 {[%emt 0:00:51]} Qe4 {[%emt 0:00:58]} 38. Qd5 {[%emt 0:00:13]} Qg4 {[%emt 0:03:56]} 39. c6 {[%emt 0:00:13]} Rfe7 {[%emt 0:00:56]} 40. Rd7 {[%emt 0:00:22]} Kh6 {[%emt 0:00:00]} 41. Rxe7 {[%emt 0:01:01]} Rxe7 {[%emt 0:00:02]} 42. Qd6 {[%emt 0:00:25]} Re6 {[%emt 0:01:18]} 43. Qf8+ {[%emt 0:00:35]} Kh5 {[%emt 0:00:02]} 44. Qc5+ {[%emt 0:00:27]} Kh6 {[%emt 0:00:24]} 45. c7 {[%emt 0:00:36]} Re8 {[%emt 0:00:01]} 46. d5 {[%emt 0:00:34]} b4 {[%emt 0:00:29]} 47. Rc1 {[%emt 0:00:19]} Rc8 {[%emt 0:00:40]} 48. d6 {[%emt 0:00:11]} b3 {[%emt 0:00:08]} 49. Qe3+ {[%emt 0:00:12]} Kg7 {[%emt 0:00:32]} 50. Qxb3 {[%emt 0:00:12]} Qd7 {[%emt 0:00:11]} 51. Qb8 {[%emt 0:00:47]} a5 {[%emt 0:00:16]} 52. Qxc8 {[%emt 0:00:17]} 1-0

[Event "Targo Mures Open 2019"]
[Site "Targo Mures"]
[Date "2019.10.18"]
[Round "3.7"]
[White "Botea, David-Alexandru"]
[Black "Vasiesiu, Dan"]
[Result "0-1"]
[ECO "B90"]
[WhiteElo "1958"]
[BlackElo "2392"]
[Annotator "NA"]
[PlyCount "88"]
[EventDate "2019.03.02"]
[EventType "swiss"]
[EventCountry "ROU"]
[SourceTitle "playchess.com"]
[Source "ChessBase"]
[SourceQuality "1"]
[TimeControl "5400+30"]

1. e4 {[%emt 0:00:00]} c5 {[%emt 0:00:00]} 2. Nf3 {[%emt 0:00:00]} d6 {[%emt 0:00:05]} 3. d4 {[%emt 0:00:00]} cxd4 {[%emt 0:00:06]} 4. Nxd4 {[%emt 0:00:00]} Nf6 {[%emt 0:00:08]} 5. Nc3 {[%emt 0:00:05]} a6 {[%emt 0:00:08]} 6. Be3 {[%emt 0:00:08]} e5 {[%emt 0:00:55]} 7. Nb3 {[%emt 0:00:09]} Be6 {[%emt 0:00:09]} 8. f3 {[%emt 0:00:08]} h5 {[%emt 0:00:31]} 9. Nd5 {[%emt 0:00:29] B90: Sicilian Najdorf: Unusual White 6th moves, 6 Be3 Ng4 and 6 Be3 e5} Bxd5 {[%emt 0:00:46]} 10. exd5 {[%emt 0:00:12]} Nbd7 {[%emt 0:00:20]} 11. Qd2 {[%emt 0:00:35]} g6 {[%emt 0:00:44]} 12. Be2 {[%emt 0:00:43]} Bg7 {[%emt 0:01:04]} 13. O-O {[%emt 0:00:11]} b6 {[%emt 0:03:36] [#]} 14. Rac1 $146 {[%emt 0:00:24]} ({Predecessor:} 14. c4 O-O {0-1 (42) Vocaturo,D (2570)-Areshchenko,A (2661) Germany 2015}) 14... O-O {[%emt 0:00:54]} 15. c4 {[%emt 0:00:11]} Re8 {[%emt 0:02:40]} 16. Na1 {[%emt 0:00:28]} e4 {[%emt 0:07:28]} 17. f4 {[%emt 0:00:15]} Ng4 {[%emt 0:01:12]} 18. Bxg4 {[%emt 0:02:17]} hxg4 {[%emt 0:00:13]} 19. b3 {[%emt 0:01:25]} Qh4 {[%emt 0:14:02]} 20. Nc2 {[%emt 0:07:41]} Nc5 {[%emt 0:15:55]} 21. g3 {[%emt 0:03:18]} Qh8 {[%emt 0:01:47]} 22. Nb4 {[%emt 0:01:13]} f5 {[%emt 0:06:03]} 23. Nc6 {[%emt 0:04:31]} Nd3 $11 {[%emt 0:00:49]} 24. Rc2 {[%emt 0:00:13]} b5 {[%emt 0:00:57]} 25. Qa5 {[%emt 0:06:03]} b4 {[%emt 0:17:58]} 26. Qc7 {[%emt 0:27:45]} Bf8 {[%emt 0:00:35]} 27. Bd4 {[%emt 0:12:40]} Qh7 {[%emt 0:00:30]} 28. Qxh7+ {[%emt 0:01:33]} Kxh7 {[%emt 0:00:02]} 29. Bb6 {[%emt 0:12:14]} a5 {[%emt 0:05:53]} 30. Bxa5 {[%emt 0:02:09]} Ra6 {[%emt 0:00:13]} 31. Rd2 {[%emt 0:10:43]} Rea8 {[%emt 0:02:40]} 32. Bxb4 {[%emt 0:00:45]} Rxc6 {[%emt 0:01:09]} 33. dxc6 {[%emt 0:00:18]} Nxb4 {[%emt 0:00:09]} 34. c7 {[%emt 0:01:06]} Rc8 {[%emt 0:00:57]} 35. a3 {[%emt 0:02:55]} Nd3 {[%emt 0:00:11]} 36. Rxd3 {[%emt 0:00:29]} exd3 {[%emt 0:00:09]} 37. Rd1 {[%emt 0:00:07]} Rxc7 {[%emt 0:00:47]} 38. Rxd3 {[%emt 0:00:05]} Kg8 {[%emt 0:01:59]} 39. Kf1 {[%emt 0:00:52]} Kf7 {[%emt 0:00:20]} 40. Ke2 {[%emt 0:00:22]} Ke6 {[%emt 0:00:18]} 41. Kd1 {[%emt 0:00:30]} Rc5 {[%emt 0:03:08]} 42. Kc2 {[%emt 0:00:56]} d5 {[%emt 0:00:35]} 43. Kc3 {[%emt 0:00:14]} dxc4 {[%emt 0:04:11]} 44. bxc4 {[%emt 0:00:03]} Ra5 {[%emt 0:01:06]} 0-1

[Event "Targo Mures Open 2019"]
[Site "Targo Mures"]
[Date "2019.10.18"]
[Round "3.8"]
[White "Banzea, Alexandru-Bogdan"]
[Black "Filip, Andrei"]
[Result "1-0"]
[ECO "B40"]
[WhiteElo "2389"]
[BlackElo "2047"]
[Annotator "NA"]
[PlyCount "47"]
[EventDate "2019.03.02"]
[EventType "swiss"]
[EventCountry "ROU"]
[SourceTitle "playchess.com"]
[Source "ChessBase"]
[SourceQuality "1"]
[TimeControl "5400+30"]

1. e4 {[%emt 0:05:31]} c5 {[%emt 0:00:00]} 2. Nf3 {[%emt 0:00:06]} e6 {[%emt 0:00:00]} 3. g3 {[%emt 0:00:10]} Nc6 {[%emt 0:01:30]} 4. Bg2 {[%emt 0:00:16]} g6 {[%emt 0:10:00]} 5. d4 {[%emt 0:00:32]} cxd4 {[%emt 0:23:05]} 6. Nxd4 {[%emt 0:00:08]} a6 {[%emt 0:02:00]} 7. O-O {[%emt 0:00:56]} Bg7 {[%emt 0:01:36]} 8. Nxc6 {[%emt 0:00:31]} dxc6 {[%emt 0:01:12]} 9. Qe2 {[%emt 0:03:16]} Ne7 {[%emt 0:01:27]} 10. Nd2 {[%emt 0:00:59]} O-O {[%emt 0:01:19]} 11. a4 {[%emt 0:01:47]} a5 {[%emt 0:05:21]} 12. e5 {[%emt 0:02:36]} b6 {[%emt 0:01:26]} 13. Re1 {[%emt 0:08:27]} Ba6 {[%emt 0:02:37]} 14. Qe4 {[%emt 0:00:35]} Qc7 {[%emt 0:02:44]} 15. Nf3 $11 {[%emt 0:03:02]} Rad8 {[%emt 0:08:37]} 16. h4 {[%emt 0:05:11]} h5 {[%emt 0:04:03]} 17. g4 {[%emt 0:02:06]} hxg4 {[%emt 0:13:35]} 18. Qxg4 {[%emt 0:00:19]} Nf5 {[%emt 0:00:52]} 19. h5 {[%emt 0:01:15]} gxh5 {[%emt 0:02:51]} 20. Qxh5 {[%emt 0:00:45]} Nd4 {[%emt 0:09:26]} 21. Ng5 {[%emt 0:05:31]} Rfe8 {[%emt 0:01:04]} 22. Bf4 {[%emt 0:06:09]} c5 {[%emt 0:04:44]} 23. Ra3 {[%emt 0:05:20]} Bb7 {[%emt 0:01:21]} 24. Ne4 {[%emt 0:01:45]} 1-0

[Event "Targo Mures Open 2019"]
[Site "Targo Mures"]
[Date "2019.10.18"]
[Round "3.9"]
[White "Paraschiv, Paul-Alexandru"]
[Black "Vladescu, Alin-Cristian"]
[Result "1-0"]
[ECO "A43"]
[WhiteElo "2023"]
[BlackElo "2004"]
[Annotator "NA"]
[PlyCount "55"]
[EventDate "2019.03.02"]
[EventType "swiss"]
[EventCountry "ROU"]
[SourceTitle "playchess.com"]
[Source "ChessBase"]
[SourceQuality "1"]
[TimeControl "5400+30"]

1. d4 {[%emt 0:00:00]} c5 {[%emt 0:01:22]} 2. d5 {[%emt 0:00:24]} Nf6 {[%emt 0:00:13]} 3. c4 {[%emt 0:00:41]} d6 {[%emt 0:01:24]} 4. Nc3 {[%emt 0:00:13]} g6 {[%emt 0:00:21]} 5. e4 {[%emt 0:00:42]} Bg7 {[%emt 0:00:10]} 6. Bd3 {[%emt 0:00:20]} O-O {[%emt 0:00:50]} 7. Nge2 {[%emt 0:01:51]} e6 {[%emt 0:05:26]} 8. O-O {[%emt 0:01:06]} e5 {[%emt 0:04:35] E70: King's Indian: Miscellaneous lines with 4 e4, including 5 Nge2 and 5 Bd3 0-0 6 Nge2} (8... exd5 9. cxd5 a6 10. a4 Re8 11. Ng3 b6 12. h3 Ra7 13. Bg5 h6 14. Bd2 Nh7 15. f4 h5 16. Kh1 h4 17. Nge2 Nd7 18. Be1 Rc7 {½-½ (75) Jumabayev,R (2605)-Amonatov,F (2615) Batumi 2018}) 9. Ng3 {[%emt 0:02:13]} a6 {[%emt 0:02:48]} 10. a4 {[%emt 0:00:20]} h6 $146 {[%emt 0:03:28]} ({Predecessor:} 10... Nbd7 11. Be3 h5 12. Bg5 Qe8 13. h3 Nh7 14. Bd2 Qe7 15. a5 Qh4 16. Na4 {0-1 (73) Koerholz,L (2335)-Levacic,P (2350) Cannes 1996}) 11. Bd2 {[%emt 0:10:18]} Nbd7 {[%emt 0:05:37]} 12. a5 {[%emt 0:04:00]} Ne8 {[%emt 0:08:10]} 13. Na4 {[%emt 0:01:27]} Kh7 {[%emt 0:01:15]} 14. b4 {[%emt 0:00:45]} Bf6 {[%emt 0:10:30]} 15. bxc5 {[%emt 0:01:16]} dxc5 {[%emt 0:03:53]} 16. Qc1 {[%emt 0:00:55]} h5 {[%emt 0:01:15]} 17. Rb1 {[%emt 0:01:09]} Qc7 {[%emt 0:04:46]} 18. Nb6 {[%emt 0:00:59]} Rb8 {[%emt 0:02:53]} 19. Nxd7 $18 {[%emt 0:02:18]} Bxd7 {[%emt 0:03:09]} 20. Rb6 {[%emt 0:00:15]} Nd6 {[%emt 0:12:46]} 21. f4 {[%emt 0:01:26]} Rbe8 {[%emt 0:02:32]} 22. fxe5 {[%emt 0:04:06]} Bxe5 {[%emt 0:00:24]} 23. Bh6 {[%emt 0:00:08]} Rg8 {[%emt 0:07:56]} 24. Bf4 {[%emt 0:01:25]} h4 {[%emt 0:13:18]} 25. Bxe5 {[%emt 0:00:34]} Rxe5 {[%emt 0:00:26]} 26. Qf4 {[%emt 0:00:11]} Rge8 {[%emt 0:02:54]} 27. Qxh4+ {[%emt 0:00:27]} Kg8 {[%emt 0:00:31]} 28. Qf6 {[%emt 0:00:07]} 1-0

[Event "Targo Mures Open 2019"]
[Site "Targo Mures"]
[Date "2019.10.18"]
[Round "3.10"]
[White "Szilveszter, Sandor"]
[Black "Stegariu, Alexandru"]
[Result "0-1"]
[ECO "B42"]
[WhiteElo "1672"]
[BlackElo "2146"]
[Annotator "NA"]
[PlyCount "102"]
[EventDate "2019.03.02"]
[EventType "swiss"]
[EventCountry "ROU"]
[SourceTitle "playchess.com"]
[Source "ChessBase"]
[SourceQuality "1"]
[TimeControl "5400+30"]

1. e4 {[%emt 0:00:00]} c5 {[%emt 0:01:49]} 2. Nf3 {[%emt 0:00:27]} e6 {[%emt 0:00:05]} 3. d4 {[%emt 0:00:52]} cxd4 {[%emt 0:00:05]} 4. Nxd4 {[%emt 0:00:25]} a6 {[%emt 0:00:01]} 5. Bd3 {[%emt 0:00:31]} Bc5 {[%emt 0:01:31]} 6. Nb3 {[%emt 0:00:24]} Ba7 {[%emt 0:00:06]} 7. O-O {[%emt 0:00:17]} Ne7 {[%emt 0:04:24]} 8. Bg5 {[%emt 0:01:11] B42: Sicilian: Kan Variation: 5 Bd3} (8. Qe2 Nbc6 9. Be3 O-O 10. Bxa7 Rxa7 11. c4 d5 12. exd5 exd5 13. Nc3 d4 14. Ne4 Ng6 15. f4 f5 16. Ng3 b6 17. Rad1 {1-0 (46) Jakovenko,D (2735)-Artemiev,V (2704) Poikovsky 2018}) 8... d6 {[%emt 0:01:39]} 9. Nc3 {[%emt 0:00:47]} Nbc6 $146 {[%emt 0:09:36]} ({Predecessor:} 9... h6 10. Bh4 O-O 11. Qd2 Nbc6 12. Rad1 Qc7 13. Kh1 b5 14. a3 d5 15. exd5 exd5 {1-0 (69) Langers,A (1734)-Schoettler,K (1575) Dortmund 2005}) 10. Kh1 {[%emt 0:00:44]} e5 {[%emt 0:01:08]} 11. f4 {[%emt 0:01:43]} f6 {[%emt 0:05:27]} 12. Bh4 {[%emt 0:00:48]} exf4 {[%emt 0:00:35]} 13. Qh5+ {[%emt 0:00:49]} Ng6 {[%emt 0:01:26]} 14. e5 {[%emt 0:00:34]} Ncxe5 {[%emt 0:02:15]} 15. Bxg6+ {[%emt 0:00:17]} Nxg6 {[%emt 0:00:30]} 16. Rae1+ {[%emt 0:00:20]} Be3 {[%emt 0:04:38]} 17. Rxf4 {[%emt 0:00:35]} O-O {[%emt 0:00:07]} 18. Qd5+ {[%emt 0:00:10]} Kh8 {[%emt 0:01:22]} 19. Re4 {[%emt 0:01:06]} Ba7 {[%emt 0:01:53]} 20. Bg3 {[%emt 0:00:56]} Ne5 {[%emt 0:01:38]} 21. Bxe5 {[%emt 0:01:37]} dxe5 {[%emt 0:00:14]} 22. Qc4 {[%emt 0:01:29]} Bf5 {[%emt 0:02:37]} 23. R4e2 {[%emt 0:00:33]} Qe7 {[%emt 0:02:05]} 24. Nd5 {[%emt 0:00:31]} Qf7 {[%emt 0:00:08]} 25. Ne3 {[%emt 0:00:43]} Bxe3 {[%emt 0:04:25]} 26. Qxf7 {[%emt 0:00:19]} Rxf7 {[%emt 0:00:06]} 27. Rxe3 {[%emt 0:00:17]} Bxc2 {[%emt 0:00:10]} 28. Nc5 {[%emt 0:01:12]} b6 {[%emt 0:02:20]} 29. Nd3 {[%emt 0:00:26]} Rd7 {[%emt 0:02:00]} 30. Nb4 {[%emt 0:00:24]} Bf5 {[%emt 0:00:25]} 31. a3 {[%emt 0:01:09]} a5 {[%emt 0:00:13]} 32. Na2 {[%emt 0:00:12]} Rd2 {[%emt 0:00:11]} 33. R3e2 {[%emt 0:00:36]} Rad8 {[%emt 0:00:13]} 34. h3 {[%emt 0:00:14]} b5 {[%emt 0:01:02]} 35. b4 {[%emt 0:00:46]} axb4 {[%emt 0:01:00]} 36. Nxb4 {[%emt 0:00:14]} h5 {[%emt 0:02:31]} 37. Nc6 $19 {[%emt 0:00:44]} Rxe2 {[%emt 0:00:32]} 38. Rxe2 {[%emt 0:00:16]} Rd3 {[%emt 0:00:11]} 39. Na7 {[%emt 0:03:29]} Bd7 {[%emt 0:00:15]} 40. Rb2 {[%emt 0:00:19]} b4 {[%emt 0:01:59]} 41. Rxb4 {[%emt 0:01:16]} Rxa3 {[%emt 0:00:10]} 42. Rb7 {[%emt 0:00:30]} Rd3 {[%emt 0:00:13]} 43. Kg1 {[%emt 0:00:31]} Kh7 {[%emt 0:00:14]} 44. Kf2 {[%emt 0:00:23]} Kg6 {[%emt 0:00:13]} 45. Rc7 {[%emt 0:00:41]} Kf5 {[%emt 0:00:30]} 46. Nc8 {[%emt 0:00:44]} Bxc8 {[%emt 0:00:09]} 47. Rxc8 {[%emt 0:00:12]} Rd2+ {[%emt 0:00:32]} 48. Kf3 {[%emt 0:01:00]} h4 {[%emt 0:00:09]} 49. g4+ {[%emt 0:00:36]} hxg3 {[%emt 0:00:06]} 50. Kxg3 {[%emt 0:00:13]} Rd3+ {[%emt 0:00:11]} 51. Kg2 {[%emt 0:00:20]} Kf4 {[%emt 0:00:10]} 0-1

[Event "Targo Mures Open 2019"]
[Site "Targo Mures"]
[Date "2019.10.18"]
[Round "3.11"]
[White "Capota, Radu-Mircea"]
[Black "Rosca, Vasile-Benone"]
[Result "0-1"]
[ECO "B22"]
[WhiteElo "1601"]
[BlackElo "2017"]
[Annotator "NA"]
[PlyCount "54"]
[EventDate "2019.03.02"]
[EventType "swiss"]
[EventCountry "ROU"]
[SourceTitle "playchess.com"]
[Source "ChessBase"]
[SourceQuality "1"]
[TimeControl "5400+30"]

1. e4 {[%emt 0:02:38]} c5 {[%emt 0:00:00]} 2. c3 {[%emt 0:00:10]} d5 {[%emt 0:00:30]} 3. e5 {[%emt 0:01:22]} Bf5 {[%emt 0:00:49]} 4. d4 {[%emt 0:00:38]} e6 {[%emt 0:00:10]} 5. Bd3 {[%emt 0:01:21]} (5. f4 Nc6 6. Nf3 h5 7. Bd3 Nh6 8. O-O Qb6 9. dxc5 Bxc5+ 10. Kh1 Bxd3 11. Qxd3 Ng4 {½-½ (42) Dimitrov,P (2323)-Tilicheev,V (2415) Sunny Beach 2013}) 5... Bxd3 {[%emt 0:01:44]} 6. Qxd3 {[%emt 0:00:09] B22: Sicilian: 2 c3} Nc6 {[%emt 0:00:05]} 7. Ne2 {[%emt 0:00:54]} Nge7 {[%emt 0:01:04]} 8. Bg5 {[%emt 0:05:10]} Qb6 {[%emt 0:01:00]} 9. Nd2 $146 {[%emt 0:08:23]} ({Predecessor:} 9. Bxe7 Bxe7 10. Qd2 O-O 11. O-O Rac8 12. b3 Rc7 13. Qb2 Rfc8 14. Rc1 cxd4 15. cxd4 Nxd4 16. Rxc7 Qxc7 17. Nbc3 Qxe5 {0-1 (18) Detko,J (2100)-Buchnicek,P (2270) Presov 1997}) 9... cxd4 {[%emt 0:01:47]} 10. cxd4 {[%emt 0:00:23]} Nf5 {[%emt 0:00:46]} 11. Be3 {[%emt 0:01:22]} Bb4 {[%emt 0:01:36]} 12. O-O {[%emt 0:00:26]} Bxd2 {[%emt 0:00:15]} 13. Qxd2 {[%emt 0:00:27]} Rc8 {[%emt 0:07:21]} 14. Rac1 {[%emt 0:01:51]} O-O {[%emt 0:00:14]} 15. a3 {[%emt 0:05:51]} Na5 {[%emt 0:00:22]} 16. Rxc8 {[%emt 0:00:16]} Rxc8 {[%emt 0:00:02]} 17. Rc1 {[%emt 0:00:17]} Rxc1+ {[%emt 0:08:18]} 18. Qxc1 {[%emt 0:00:56]} Nc4 {[%emt 0:00:02]} 19. b4 {[%emt 0:06:54]} Qa6 {[%emt 0:01:48]} 20. Bg5 {[%emt 0:01:40]} h6 {[%emt 0:00:15]} 21. Bd8 {[%emt 0:00:37]} Nxe5 {[%emt 0:02:29]} 22. Qc2 $19 {[%emt 0:11:25]} (22. b5 {might work better.} Qxb5 23. Nc3) 22... Nc6 {[%emt 0:01:55]} 23. Bc7 {[%emt 0:02:07]} Nfxd4 {[%emt 0:01:19]} 24. Nxd4 {[%emt 0:00:38]} Nxd4 {[%emt 0:00:02]} 25. Qb2 {[%emt 0:01:53]} Ne2+ {[%emt 0:00:39]} 26. Kh1 {[%emt 0:00:12]} Qd3 {[%emt 0:01:12]} 27. Qa1 {[%emt 0:01:04]} f6 {[%emt 0:00:16]} 0-1